Workbook

Sheet Interés al Vencimiento
A3: Pago de Interés al Vencimiento
A4: Capital | B4: 5000
A5: Plazo en días | B5: 1080
A6: TREA | B6: 0.07
A7: Tasa del plazo | B7: =((1+$B$6)^(B5/360)-1) -> 0.225043
A8: Interés al Vencimiento | B8: =B7*B4 -> 1125.215
A10: Pre-cancelación:
A11: TEA penalidad | B11: 0.0125
A12: Días transcurridos | B12: 90
A13: Tasa del plazo penalidad | B13: =((1+$B$11)^(B12/360)-1) -> 0.003110457465
A14: Interés al Vencimiento por Pre-cancelación | B14: =B4*B13 -> 15.55228732
B16: Datos variables

Sheet Interés Mensual
A3: Pago de Interés Mensual
A4: Capital | B4: 5000
A5: Plazo en días | B5: =36*30 -> 1080
A6: TREA | B6: 0.07
A7: Tasa del plazo | B7: =((1+$B$6)^(30/360)-1) -> 0.005654145387
A8: Interés Mensual | B8: =B7*B4 -> 28.27072694
A9: Interés total Abonado | B9: =+B5/30*B8 -> 1017.74617
A11: Pre-cancelación:
A12: TEA penalidad | B12: 0.0125
A13: Días transcurridos | B13: 90
A14: Tasa del plazo penalidad | B14: =((1+$B$12)^(30/360)-1) -> 0.001035746015
A15: Interés total por Pre-cancelación | B15: =B4*B14*B13/30 -> 15.53619022
B17: Datos variables

Sheet Interés Adelantado
A3: Pago de Interés Adelantado
A4: Capital | B4: 100000
A5: Plazo en días | B5: 180
A6: TREA | B6: 0.05
A7: Tasa del plazo | B7: =((1+$B$6)^(B5/360)-1) -> 0.0246950766
A8: Tasa del plazo de interés adelantado | B8: =B7/(1+B7) -> 0.02409992705
A9: Interés Adelantado | B9: =+B8*B4 -> 2409.992705
A11: Pre-cancelación:
A12: TEA penalidad | B12: 0.0125
A13: Días transcurridos | B13: 90
A14: Tasa del plazo penalidad | B14: =((1+$B$12)^(B13/360)-1) -> 0.003110457465
A15: Tasa del plazo de interés penalidad | B15: =B14/(1+B14) -> 0.003100812519
A16: Descuento del Capital por Pre-cancelación | B16: =B9-(B15*B4) -> 2099.911453
B18: Datos variables

Sheet Interés y Capital Mensual
A3: Pago Interes y capital Mensual | F3: Pre-Cancelación:
A4: CAPITAL | D4: 1000000
A5: Tasa 12 meses (TEA) | D5: 0.05 | F5: Tasa 12 meses (TEA) penalidad | I5: 0.0125
A6: Meses | D6: 60 | F6: Periodo de alerta | I6: 35
A7: Cuota Mensual (Interés+Capital) | D7: 5000
A8: CAPITAL remanente al final del periodo | D8: 937212.8729
A12: MES | B12: CAPITAL | C12: Porción capital | D12: Porción interés | E12: Pago Mensual | F12: Dscto.Capital Pre-cancelación (a periodo vencido) | H12: CAPITAL | I12: Dscto. Capital | J12: Interes mes
A13: 1 | B13: 1000000 | C13: 925.8762164 | D13: 4074.123784 | E13: 5000 | F13: 3038.377769 | H13: 1000000 | I13: 3964.253985 | J13: 1035.746015
A14: 2 | B14: 999074.1238 | C14: 929.6483507 | D14: 4070.351649 | E14: 5000 | F14: 6077.089364 | H14: 996035.746 | I14: 3968.359946 | J14: 1031.640054
A15: 3 | B15: 998144.4754 | C15: 933.4358531 | D15: 4066.564147 | E15: 5000 | F15: 9116.123669 | H15: 992067.3861 | I15: 3972.470159 | J15: 1027.529841
A16: 4 | B16: 997211.0396 | C16: 937.2387863 | D16: 4062.761214 | E16: 5000 | F16: 12155.46951 | H16: 988094.9159 | I16: 3976.584629 | J16: 1023.415371
A17: 5 | B17: 996273.8008 | C17: 941.0572132 | D17: 4058.942787 | E17: 5000 | F17: 15195.11566 | H17: 984118.3313 | I17: 3980.70336 | J17: 1019.29664
A18: 6 | B18: 995332.7436 | C18: 944.8911967 | D18: 4055.108803 | E18: 5000 | F18: 18235.05082 | H18: 980137.6279 | I18: 3984.826358 | J18: 1015.173642
A19: 7 | B19: 994387.8524 | C19: 948.7408004 | D19: 4051.2592 | E19: 5000 | F19: 21275.26365 | H19: 976152.8016 | I19: 3988.953626 | J19: 1011.046374
A20: 8 | B20: 993439.1116 | C20: 952.6060879 | D20: 4047.393912 | E20: 5000 | F20: 24315.74273 | H20: 972163.8479 | I20: 3993.085169 | J20: 1006.914831
A21: 9 | B21: 992486.5055 | C21: 956.487123 | D21: 4043.512877 | E21: 5000 | F21: 27356.47659 | H21: 968170.7628 | I21: 3997.220991 | J21: 1002.779009
A22: 10 | B22: 991530.0184 | C22: 960.3839699 | D22: 4039.61603 | E22: 5000 | F22: 30397.45372 | H22: 964173.5418 | I22: 4001.361097 | J22: 998.6389034
A23: 11 | B23: 990569.6344 | C23: 964.2966931 | D23: 4035.703307 | E23: 5000 | F23: 33438.66252 | H23: 960172.1807 | I23: 4005.50549 | J23: 994.4945096
A24: 12 | B24: 989605.3377 | C24: 968.2253572 | D24: 4031.774643 | E24: 5000 | F24: 36480.09134 | H24: 956166.6752 | I24: 4009.654177 | J24: 990.3458232
A25: 13 | B25: 988637.1124 | C25: 972.1700272 | D25: 4027.829973 | E25: 5000 | F25: 39521.72847 | H25: 952157.021 | I25: 4013.80716 | J25: 986.1928399
A26: 14 | B26: 987664.9423 | C26: 976.1307682 | D26: 4023.869232 | E26: 5000 | F26: 42563.56215 | H26: 948143.2139 | I26: 4017.964445 | J26: 982.0355551
A27: 15 | B27: 986688.8116 | C27: 980.1076458 | D27: 4019.892354 | E27: 5000 | F27: 45605.58054 | H27: 944125.2494 | I27: 4022.126036 | J27: 977.8739645
A28: 16 | B28: 985708.7039 | C28: 984.1007256 | D28: 4015.899274 | E28: 5000 | F28: 48647.77175 | H28: 940103.1234 | I28: 4026.291937 | J28: 973.7080634
A29: 17 | B29: 984724.6032 | C29: 988.1100738 | D29: 4011.889926 | E29: 5000 | F29: 51690.12383 | H29: 936076.8314 | I29: 4030.462152 | J29: 969.5378476
A30: 18 | B30: 983736.4931 | C30: 992.1357566 | D30: 4007.864243 | E30: 5000 | F30: 54732.62476 | H30: 932046.3693 | I30: 4034.636687 | J30: 965.3633125
A31: 19 | B31: 982744.3574 | C31: 996.1778405 | D31: 4003.82216 | E31: 5000 | F31: 57775.26246 | H31: 928011.7326 | I31: 4038.815546 | J31: 961.1844536
A32: 20 | B32: 981748.1795 | C32: 1000.236392 | D32: 3999.763608 | E32: 5000 | F32: 60818.02481 | H32: 923972.9171 | I32: 4042.998733 | J32: 957.0012665
A33: 21 | B33: 980747.9431 | C33: 1004.311479 | D33: 3995.688521 | E33: 5000 | F33: 63860.89958 | H33: 919929.9183 | I33: 4047.186253 | J33: 952.8137467
A34: 22 | B34: 979743.6316 | C34: 1008.403168 | D34: 3991.596832 | E34: 5000 | F34: 66903.87452 | H34: 915882.7321 | I34: 4051.37811 | J34: 948.6218897
A35: 23 | B35: 978735.2285 | C35: 1012.511528 | D35: 3987.488472 | E35: 5000 | F35: 69946.9373 | H35: 911831.354 | I35: 4055.574309 | J35: 944.4256909
A36: 24 | B36: 977722.7169 | C36: 1016.636625 | D36: 3983.363375 | E36: 5000 | F36: 72990.07553 | H36: 907775.7796 | I36: 4059.774854 | J36: 940.225146
A37: 25 | B37: 976706.0803 | C37: 1020.778529 | D37: 3979.221471 | E37: 5000 | F37: 76033.27675 | H37: 903716.0048 | I37: 4063.97975 | J37: 936.0202504
A38: 26 | B38: 975685.3018 | C38: 1024.937307 | D38: 3975.062693 | E38: 5000 | F38: 79076.52845 | H38: 899652.025 | I38: 4068.189 | J38: 931.8109996
A39: 27 | B39: 974660.3645 | C39: 1029.113028 | D39: 3970.886972 | E39: 5000 | F39: 82119.81803 | H39: 895583.836 | I39: 4072.402611 | J39: 927.597389
A40: 28 | B40: 973631.2515 | C40: 1033.305762 | D40: 3966.694238 | E40: 5000 | F40: 85163.13285 | H40: 891511.4334 | I40: 4076.620586 | J40: 923.3794142
A41: 29 | B41: 972597.9457 | C41: 1037.515578 | D41: 3962.484422 | E41: 5000 | F41: 88206.4602 | H41: 887434.8128 | I41: 4080.842929 | J41: 919.1570707
A42: 30 | B42: 971560.4301 | C42: 1041.742544 | D42: 3958.257456 | E42: 5000 | F42: 91249.78731 | H42: 883353.9699 | I42: 4085.069646 | J42: 914.9303539
A43: 31 | B43: 970518.6876 | C43: 1045.986732 | D43: 3954.013268 | E43: 5000 | F43: 94293.10131 | H43: 879268.9003 | I43: 4089.300741 | J43: 910.6992593
A44: 32 | B44: 969472.7008 | C44: 1050.248212 | D44: 3949.751788 | E44: 5000 | F44: 97336.38932 | H44: 875179.5995 | I44: 4093.536218 | J44: 906.4637824
A45: 33 | B45: 968422.4526 | C45: 1054.527053 | D45: 3945.472947 | E45: 5000 | F45: 100379.6383 | H45: 871086.0633 | I45: 4097.776081 | J45: 902.2239185
A46: 34 | B46: 967367.9256 | C46: 1058.823327 | D46: 3941.176673 | E46: 5000 | F46: 103422.8354 | H46: 866988.2872 | I46: 4102.020337 | J46: 897.9796633
A47: 35 | B47: 966309.1023 | C47: 1063.137104 | D47: 3936.862896 | E47: 5000 | F47: 106465.9672 | H47: 862886.2669 | I47: 4106.268988 | J47: 893.7310121
A48: 36 | B48: 965245.9651 | C48: 1067.468456 | D48: 3932.531544 | E48: 5000 | F48: 109509.0208 | H48: 858779.9979 | I48: 4110.52204 | J48: 889.4779603
A49: 37 | B49: 964178.4967 | C49: 1071.817455 | D49: 3928.182545 | E49: 5000 | F49: 112551.9829 | H49: 854669.4759 | I49: 4114.779496 | J49: 885.2205035
A50: 38 | B50: 963106.6792 | C50: 1076.184172 | D50: 3923.815828 | E50: 5000 | F50: 115594.8401 | H50: 850554.6964 | I50: 4119.041363 | J50: 880.958637
A51: 39 | B51: 962030.4951 | C51: 1080.568679 | D51: 3919.431321 | E51: 5000 | F51: 118637.579 | H51: 846435.655 | I51: 4123.307644 | J51: 876.6923564
A52: 40 | B52: 960949.9264 | C52: 1084.97105 | D52: 3915.02895 | E52: 5000 | F52: 121680.1863 | H52: 842312.3474 | I52: 4127.578343 | J52: 872.4216569
A53: 41 | B53: 959864.9553 | C53: 1089.391356 | D53: 3910.608644 | E53: 5000 | F53: 124722.6484 | H53: 838184.769 | I53: 4131.853466 | J53: 868.1465341
A54: 42 | B54: 958775.564 | C54: 1093.829672 | D54: 3906.170328 | E54: 5000 | F54: 127764.9518 | H54: 834052.9156 | I54: 4136.133017 | J54: 863.8669833
A55: 43 | B55: 957681.7343 | C55: 1098.286069 | D55: 3901.713931 | E55: 5000 | F55: 130807.0827 | H55: 829916.7825 | I55: 4140.417 | J55: 859.583
A56: 44 | B56: 956583.4482 | C56: 1102.760622 | D56: 3897.239378 | E56: 5000 | F56: 133849.0275 | H56: 825776.3655 | I56: 4144.70542 | J56: 855.2945796
A57: 45 | B57: 955480.6876 | C57: 1107.253406 | D57: 3892.746594 | E57: 5000 | F57: 136890.7724 | H57: 821631.6601 | I57: 4148.998282 | J57: 851.0017175
A58: 46 | B58: 954373.4342 | C58: 1111.764493 | D58: 3888.235507 | E58: 5000 | F58: 139932.3035 | H58: 817482.6618 | I58: 4153.295591 | J58: 846.7044091
A59: 47 | B59: 953261.6697 | C59: 1116.293959 | D59: 3883.706041 | E59: 5000 | F59: 142973.6069 | H59: 813329.3662 | I59: 4157.59735 | J59: 842.4026497
A60: 48 | B60: 952145.3758 | C60: 1120.841879 | D60: 3879.158121 | E60: 5000 | F60: 146014.6686 | H60: 809171.7689 | I60: 4161.903565 | J60: 838.0964348
A61: 49 | B61: 951024.5339 | C61: 1125.408328 | D61: 3874.591672 | E61: 5000 | F61: 149055.4745 | H61: 805009.8653 | I61: 4166.21424 | J61: 833.7857598
A62: 50 | B62: 949899.1255 | C62: 1129.993381 | D62: 3870.006619 | E62: 5000 | F62: 152096.0105 | H62: 800843.6511 | I62: 4170.52938 | J62: 829.47062
A63: 51 | B63: 948769.1322 | C63: 1134.597113 | D63: 3865.402887 | E63: 5000 | F63: 155136.2623 | H63: 796673.1217 | I63: 4174.848989 | J63: 825.1510108
A64: 52 | B64: 947634.5351 | C64: 1139.219603 | D64: 3860.780397 | E64: 5000 | F64: 158176.2158 | H64: 792498.2727 | I64: 4179.173072 | J64: 820.8269276
A65: 53 | B65: 946495.3155 | C65: 1143.860924 | D65: 3856.139076 | E65: 5000 | F65: 161215.8565 | H65: 788319.0996 | I65: 4183.501634 | J65: 816.4983658
A66: 54 | B66: 945351.4545 | C66: 1148.521155 | D66: 3851.478845 | E66: 5000 | F66: 164255.17 | H66: 784135.598 | I66: 4187.834679 | J66: 812.1653206
A67: 55 | B67: 944202.9334 | C67: 1153.200373 | D67: 3846.799627 | E67: 5000 | F67: 167294.1419 | H67: 779947.7633 | I67: 4192.172212 | J67: 807.8277875
A68: 56 | B68: 943049.733 | C68: 1157.898654 | D68: 3842.101346 | E68: 5000 | F68: 170332.7575 | H68: 775755.5911 | I68: 4196.514238 | J68: 803.4857619
A69: 57 | B69: 941891.8343 | C69: 1162.616076 | D69: 3837.383924 | E69: 5000 | F69: 173371.0022 | H69: 771559.0769 | I69: 4200.860761 | J69: 799.139239
A70: 58 | B70: 940729.2183 | C70: 1167.352718 | D70: 3832.647282 | E70: 5000 | F70: 176408.8612 | H70: 767358.2161 | I70: 4205.211786 | J70: 794.7882142
A71: 59 | B71: 939561.8656 | C71: 1172.108657 | D71: 3827.891343 | E71: 5000 | F71: 179446.3199 | H71: 763153.0043 | I71: 4209.567317 | J71: 790.4326828
A72: 60 | B72: 938389.7569 | C72: 1176.883973 | D72: 3823.116027 | E72: 5000 | F72: 182483.3633 | H72: 758943.437 | I72: 4213.92736 | J72: 786.0726403
B73: 937212.8729

Sheet Cuota mixta 5años (hidden)
A1: Cálculo de abono mensual de Interés + Capital:
A2: CAPITAL INICIAL | D2: 280000
A3: Tasa 12 meses (TEA) | D3: 0.065
A4: Dscto.Capital mes1 | D4: 1527
A5: Abono Mensual Solicitado (Interés+Capital) | D5: =+E11 -> 3000.274398
A6: CAPITAL remanente al final del periodo | D6: =IF(B71>0,B71,"CAPITAL INSUFICIENTE") -> 172596.8889
D8: Datos variables
A10: MES | B10: CAPITAL | C10: Dscto.K | D10: Interes mes | E10: Abono Mensual
A11: 1 | B11: =+D2 -> 280000 | C11: =+D4 -> 1527 | D11: =((1+$D$3)^(30/360)-1)*B11 -> 1473.274398 | E11: =+D11+C11 -> 3000.274398
A12: 2 | B12: =+B11-C11 -> 278473 | C12: =(E11-D12) -> 1535.034607 | D12: =((1+$D$3)^(30/360)-1)*B12 -> 1465.23979 | E12: =+D12+C12 -> 3000.274398
A13: 3 | B13: =+B12-C12 -> 276937.9654 | C13: =(E12-D13) -> 1543.11149 | D13: 1457.162908 | E13: 3000.274398
A14: 4 | B14: 275394.8539 | C14: 1551.230871 | D14: 1449.043527 | E14: 3000.274398
A15: 5 | B15: 273843.623 | C15: 1559.392973 | D15: 1440.881424 | E15: 3000.274398
A16: 6 | B16: 272284.2301 | C16: 1567.598023 | D16: 1432.676375 | E16: 3000.274398
A17: 7 | B17: 270716.632 | C17: 1575.846244 | D17: 1424.428153 | E17: 3000.274398
A18: 8 | B18: 269140.7858 | C18: 1584.137865 | D18: 1416.136532 | E18: 3000.274398
A19: 9 | B19: 267556.6479 | C19: 1592.473114 | D19: 1407.801283 | E19: 3000.274398
A20: 10 | B20: 265964.1748 | C20: 1600.852221 | D20: 1399.422176 | E20: 3000.274398
A21: 11 | B21: 264363.3226 | C21: 1609.275416 | D21: 1390.998981 | E21: 3000.274398
A22: 12 | B22: 262754.0472 | C22: 1617.742931 | D22: 1382.531466 | E22: 3000.274398
A23: 13 | B23: 261136.3042 | C23: 1626.255 | D23: 1374.019398 | E23: 3000.274398
A24: 14 | B24: 259510.0492 | C24: 1634.811857 | D24: 1365.462541 | E24: 3000.274398
A25: 15 | B25: 257875.2374 | C25: 1643.413737 | D25: 1356.860661 | E25: 3000.274398
A26: 16 | B26: 256231.8237 | C26: 1652.060877 | D26: 1348.21352 | E26: 3000.274398
A27: 17 | B27: 254579.7628 | C27: 1660.753517 | D27: 1339.520881 | E27: 3000.274398
A28: 18 | B28: 252919.0093 | C28: 1669.491894 | D28: 1330.782504 | E28: 3000.274398
A29: 19 | B29: 251249.5174 | C29: 1678.27625 | D29: 1321.998148 | E29: 3000.274398
A30: 20 | B30: 249571.2411 | C30: 1687.106826 | D30: 1313.167571 | E30: 3000.274398
A31: 21 | B31: 247884.1343 | C31: 1695.983867 | D31: 1304.290531 | E31: 3000.274398
A32: 22 | B32: 246188.1504 | C32: 1704.907615 | D32: 1295.366782 | E32: 3000.274398
A33: 23 | B33: 244483.2428 | C33: 1713.878318 | D33: 1286.396079 | E33: 3000.274398
A34: 24 | B34: 242769.3645 | C34: 1722.896222 | D34: 1277.378176 | E34: 3000.274398
A35: 25 | B35: 241046.4683 | C35: 1731.961575 | D35: 1268.312823 | E35: 3000.274398
A36: 26 | B36: 239314.5067 | C36: 1741.074627 | D36: 1259.19977 | E36: 3000.274398
A37: 27 | B37: 237573.4321 | C37: 1750.23563 | D37: 1250.038768 | E37: 3000.274398
A38: 28 | B38: 235823.1964 | C38: 1759.444835 | D38: 1240.829563 | E38: 3000.274398
A39: 29 | B39: 234063.7516 | C39: 1768.702495 | D39: 1231.571902 | E39: 3000.274398
A40: 30 | B40: 232295.0491 | C40: 1778.008867 | D40: 1222.26553 | E40: 3000.274398
A41: 31 | B41: 230517.0402 | C41: 1787.364206 | D41: 1212.910191 | E41: 3000.274398
A42: 32 | B42: 228729.676 | C42: 1796.76877 | D42: 1203.505627 | E42: 3000.274398
A43: 33 | B43: 226932.9073 | C43: 1806.222818 | D43: 1194.051579 | E43: 3000.274398
A44: 34 | B44: 225126.6844 | C44: 1815.72661 | D44: 1184.547787 | E44: 3000.274398
A45: 35 | B45: 223310.9578 | C45: 1825.280409 | D45: 1174.993989 | E45: 3000.274398
A46: 36 | B46: 221485.6774 | C46: 1834.884476 | D46: 1165.389921 | E46: 3000.274398
A47: 37 | B47: 219650.7929 | C47: 1844.539077 | D47: 1155.73532 | E47: 3000.274398
A48: 38 | B48: 217806.2539 | C48: 1854.244478 | D48: 1146.029919 | E48: 3000.274398
A49: 39 | B49: 215952.0094 | C49: 1864.000946 | D49: 1136.273452 | E49: 3000.274398
A50: 40 | B50: 214088.0084 | C50: 1873.808749 | D50: 1126.465649 | E50: 3000.274398
A51: 41 | B51: 212214.1997 | C51: 1883.668158 | D51: 1116.60624 | E51: 3000.274398
A52: 42 | B52: 210330.5315 | C52: 1893.579443 | D52: 1106.694954 | E52: 3000.274398
A53: 43 | B53: 208436.9521 | C53: 1903.54288 | D53: 1096.731518 | E53: 3000.274398
A54: 44 | B54: 206533.4092 | C54: 1913.55874 | D54: 1086.715657 | E54: 3000.274398
A55: 45 | B55: 204619.8505 | C55: 1923.627301 | D55: 1076.647096 | E55: 3000.274398
A56: 46 | B56: 202696.2232 | C56: 1933.74884 | D56: 1066.525557 | E56: 3000.274398
A57: 47 | B57: 200762.4743 | C57: 1943.923635 | D57: 1056.350762 | E57: 3000.274398
A58: 48 | B58: 198818.5507 | C58: 1954.151967 | D58: 1046.12243 | E58: 3000.274398
A59: 49 | B59: 196864.3987 | C59: 1964.434117 | D59: 1035.84028 | E59: 3000.274398
A60: 50 | B60: 194899.9646 | C60: 1974.770369 | D60: 1025.504028 | E60: 3000.274398
A61: 51 | B61: 192925.1942 | C61: 1985.161007 | D61: 1015.11339 | E61: 3000.274398
A62: 52 | B62: 190940.0332 | C62: 1995.606317 | D62: 1004.66808 | E62: 3000.274398
A63: 53 | B63: 188944.4269 | C63: 2006.106588 | D63: 994.1678098 | E63: 3000.274398
A64: 54 | B64: 186938.3203 | C64: 2016.662107 | D64: 983.6122902 | E64: 3000.274398
A65: 55 | B65: 184921.6582 | C65: 2027.273167 | D65: 973.0012307 | E65: 3000.274398
A66: 56 | B66: 182894.3851 | C66: 2037.940058 | D66: 962.3343391 | E66: 3000.274398
A67: 57 | B67: 180856.445 | C67: 2048.663076 | D67: 951.6113216 | E67: 3000.274398
A68: 58 | B68: 178807.7819 | C68: 2059.442515 | D68: 940.8318828 | E68: 3000.274398
A69: 59 | B69: 176748.3394 | C69: 2070.278672 | D69: 929.9957259 | E69: 3000.274398
A70: 60 | B70: 174678.0607 | C70: 2081.171845 | D70: 919.1025525 | E70: 3000.274398
B71: 172596.8889

Sheet Cuota mixta (hidden)
A1: Cálculo de abono mensual de Interés + Capital: | G1: Pre-Cancelación de abono mensual de Interés + Capital:
A2: CAPITAL | D2: 600000 | G2: CAPITAL | J2: =+D2 -> 600000
A3: Tasa 12 meses (TEA) | D3: 0.07 | G3: Tasa 12 meses (TEA) penalidad | J3: 0.0125
A4: Dscto.Capital mes1 | D4: 6607.512768 | G4: Dscto.Capital mes1 | J4: 9378.552391
A5: Abono Mensual Solicitado (Interés+Capital) | D5: =+E11 -> 10000 | G5: Abono Mensual Solicitado (Interés+Capital) | J5: =+K11 -> 10000
A6: CAPITAL remanente al final del periodo | D6: =+B47 -> 337011.6271 | G6: CAPITAL remanente sin penalidad | J6: =+H23 -> 486814.042
G7: Dscto. del Capital por Penalidad | J7: =+B23-H23 -> 31382.98652
G8: CAPITAL neto | J8: =+J6-J7 -> 455431.0555
A10: MES | B10: CAPITAL | C10: Dscto.K | D10: Interes mes | E10: Abono Mensual | G10: MES | H10: CAPITAL | I10: Dscto.K | J10: Interes mes | K10: Abono Mensual
A11: 1 | B11: =+D2 -> 600000 | C11: =+D4 -> 6607.512768 | D11: =((1+$D$3)^(30/360)-1)*B11 -> 3392.487232 | E11: =+D11+C11 -> 10000 | G11: 1 | H11: =+J2 -> 600000 | I11: =+J4 -> 9378.552391 | J11: =((1+$J$3)^(30/360)-1)*H11 -> 621.4476088 | K11: =+J11+I11 -> 10000
A12: 2 | B12: =+B11-C11 -> 593392.4872 | C12: =(E11-D12) -> 6644.872605 | D12: =((1+$D$3)^(30/360)-1)*B12 -> 3355.127395 | E12: =+D12+C12 -> 10000 | G12: 2 | H12: =+H11-I11 -> 590621.4476 | I12: =(K11-J12) -> 9388.266189 | J12: =((1+$J$3)^(30/360)-1)*H12 -> 611.7338106 | K12: =+J12+I12 -> 10000
A13: 3 | B13: =+B12-C12 -> 586747.6146 | C13: =(E12-D13) -> 6682.443681 | D13: 3317.556319 | E13: 10000 | G13: 3 | H13: =+H12-I12 -> 581233.1814 | I13: =(K12-J13) -> 9397.990049 | J13: =((1+$J$3)^(30/360)-1)*H13 -> 602.0099513 | K13: =+J13+I13 -> 10000
A14: 4 | B14: 580065.1709 | C14: 6720.227189 | D14: 3279.772811 | E14: 10000 | G14: 4 | H14: =+H13-I13 -> 571835.1914 | I14: =(K13-J14) -> 9407.723979 | J14: =((1+$J$3)^(30/360)-1)*H14 -> 592.2760205 | K14: =+J14+I14 -> 10000
A15: 5 | B15: 573344.9438 | C15: 6758.224331 | D15: 3241.775669 | E15: 10000 | G15: 5 | H15: =+H14-I14 -> 562427.4674 | I15: =(K14-J15) -> 9417.467992 | J15: =((1+$J$3)^(30/360)-1)*H15 -> 582.5320079 | K15: =+J15+I15 -> 10000
A16: 6 | B16: 566586.7194 | C16: 6796.436314 | D16: 3203.563686 | E16: 10000 | G16: 6 | H16: =+H15-I15 -> 553009.9994 | I16: =(K15-J16) -> 9427.222097 | J16: =((1+$J$3)^(30/360)-1)*H16 -> 572.777903 | K16: =+J16+I16 -> 10000
A17: 7 | B17: 559790.2831 | C17: 6834.864353 | D17: 3165.135647 | E17: 10000 | G17: 7 | H17: 543582.7773 | I17: 9436.986305 | J17: 563.0136952 | K17: 10000
A18: 8 | B18: 552955.4188 | C18: 6873.50967 | D18: 3126.49033 | E18: 10000 | G18: 8 | H18: 534145.791 | I18: 9446.760626 | J18: 553.2393743 | K18: 10000
A19: 9 | B19: 546081.9091 | C19: 6912.373493 | D19: 3087.626507 | E19: 10000 | G19: 9 | H19: 524699.0304 | I19: 9456.54507 | J19: 543.4549296 | K19: 10000
A20: 10 | B20: 539169.5356 | C20: 6951.457057 | D20: 3048.542943 | E20: 10000 | G20: 10 | H20: 515242.4853 | I20: 9466.339649 | J20: 533.6603508 | K20: 10000
A21: 11 | B21: 532218.0785 | C21: 6990.761606 | D21: 3009.238394 | E21: 10000 | G21: 11 | H21: 505776.1457 | I21: 9476.144373 | J21: 523.8556272 | K21: 10000
A22: 12 | B22: 525227.3169 | C22: 7030.288389 | D22: 2969.711611 | E22: 10000 | G22: 12 | H22: 496300.0013 | I22: 9485.959252 | J22: 514.0407484 | K22: 10000
A23: 13 | B23: =+B22-C22 -> 518197.0285 | C23: 7070.038661 | D23: 2929.961339 | E23: 10000 | G23: 13 | H23: 486814.042 | I23: 9495.784296 | J23: 504.2157039 | K23: 10000
A24: 14 | B24: 511126.9899 | C24: 7110.013688 | D24: 2889.986312 | E24: 10000 | G24: 14 | H24: 477318.2577 | I24: 9505.619517 | J24: 494.3804832 | K24: 10000
A25: 15 | B25: 504016.9762 | C25: 7150.214739 | D25: 2849.785261 | E25: 10000 | G25: 15 | H25: 467812.6382 | I25: 9515.464924 | J25: 484.5350757 | K25: 10000
A26: 16 | B26: 496866.7615 | C26: 7190.643093 | D26: 2809.356907 | E26: 10000 | G26: 16 | H26: 458297.1733 | I26: 9525.320529 | J26: 474.6794708 | K26: 10000
A27: 17 | B27: 489676.1184 | C27: 7231.300034 | D27: 2768.699966 | E27: 10000 | G27: 17 | H27: 448771.8528 | I27: 9535.186342 | J27: 464.813658 | K27: 10000
A28: 18 | B28: 482444.8183 | C28: 7272.186856 | D28: 2727.813144 | E28: 10000 | G28: 18 | H28: 439236.6664 | I28: 9545.062373 | J28: 454.9376268 | K28: 10000
A29: 19 | B29: 475172.6315 | C29: 7313.304858 | D29: 2686.695142 | E29: 10000 | G29: 19 | H29: 429691.604 | I29: 9554.948634 | J29: 445.0513664 | K29: 10000
A30: 20 | B30: 467859.3266 | C30: 7354.655346 | D30: 2645.344654 | E30: 10000 | G30: 20 | H30: 420136.6554 | I30: 9564.845134 | J30: 435.1548665 | K30: 10000
A31: 21 | B31: 460504.6713 | C31: 7396.239637 | D31: 2603.760363 | E31: 10000 | G31: 21 | H31: 410571.8103 | I31: 9574.751884 | J31: 425.2481162 | K31: 10000
A32: 22 | B32: 453108.4316 | C32: 7438.059051 | D32: 2561.940949 | E32: 10000 | G32: 22 | H32: 400997.0584 | I32: 9584.668895 | J32: 415.3311051 | K32: 10000
A33: 23 | B33: 445670.3726 | C33: 7480.114919 | D33: 2519.885081 | E33: 10000 | G33: 23 | H33: 391412.3895 | I33: 9594.596177 | J33: 405.4038225 | K33: 10000
A34: 24 | B34: 438190.2577 | C34: 7522.408576 | D34: 2477.591424 | E34: 10000 | G34: 24 | H34: 381817.7933 | I34: 9604.533742 | J34: 395.4662578 | K34: 10000
A35: 25 | B35: 430667.8491 | C35: 7564.941368 | D35: 2435.058632 | E35: 10000 | G35: 25 | H35: 372213.2596 | I35: 9614.4816 | J35: 385.5184002 | K35: 10000
A36: 26 | B36: 423102.9077 | C36: 7607.714646 | D36: 2392.285354 | E36: 10000 | G36: 26 | H36: 362598.778 | I36: 9624.439761 | J36: 375.5602392 | K36: 10000
A37: 27 | B37: 415495.1931 | C37: 7650.729771 | D37: 2349.270229 | E37: 10000 | G37: 27 | H37: 352974.3382 | I37: 9634.408236 | J37: 365.5917641 | K37: 10000
A38: 28 | B38: 407844.4633 | C38: 7693.988109 | D38: 2306.011891 | E38: 10000 | G38: 28 | H38: 343339.93 | I38: 9644.387036 | J38: 355.6129642 | K38: 10000
A39: 29 | B39: 400150.4752 | C39: 7737.491036 | D39: 2262.508964 | E39: 10000 | G39: 29 | H39: 333695.5429 | I39: 9654.376171 | J39: 345.6238287 | K39: 10000
A40: 30 | B40: 392412.9842 | C40: 7781.239936 | D40: 2218.760064 | E40: 10000 | G40: 30 | H40: 324041.1668 | I40: 9664.375653 | J40: 335.6243471 | K40: 10000
A41: 31 | B41: 384631.7442 | C41: 7825.236198 | D41: 2174.763802 | E41: 10000 | G41: 31 | H41: 314376.7911 | I41: 9674.385491 | J41: 325.6145085 | K41: 10000
A42: 32 | B42: 376806.508 | C42: 7869.481221 | D42: 2130.518779 | E42: 10000 | G42: 32 | H42: 304702.4056 | I42: 9684.405698 | J42: 315.5943023 | K42: 10000
A43: 33 | B43: 368937.0268 | C43: 7913.976412 | D43: 2086.023588 | E43: 10000 | G43: 33 | H43: 295017.9999 | I43: 9694.436282 | J43: 305.5637177 | K43: 10000
A44: 34 | B44: 361023.0504 | C44: 7958.723185 | D44: 2041.276815 | E44: 10000 | G44: 34 | H44: 285323.5637 | I44: 9704.477256 | J44: 295.522744 | K44: 10000
A45: 35 | B45: 353064.3272 | C45: 8003.722963 | D45: 1996.277037 | E45: 10000 | G45: 35 | H45: 275619.0864 | I45: 9714.52863 | J45: 285.4713703 | K45: 10000
A46: 36 | B46: 345060.6042 | C46: 8048.977176 | D46: 1951.022824 | E46: 10000 | G46: 36 | H46: 265904.5578 | I46: 9724.590414 | J46: 275.409586 | K46: 10000
A47: 37 | B47: =+B46-C46 -> 337011.6271 | C47: =(E46-D47) -> 8094.487263 | D47: =((1+$D$3)^(30/360)-1)*B47 -> 1905.512737 | E47: =+D47+C47 -> 10000 | G47: 37 | H47: 256179.9674 | I47: 9734.66262 | J47: 265.3373802 | K47: 10000
A48: 38 | B48: 328917.1398 | C48: 8140.254671 | D48: 1859.745329 | E48: 10000 | G48: 38 | H48: 246445.3047 | I48: 9744.745258 | J48: 255.2547422 | K48: 10000
A49: 39 | B49: 320776.8851 | C49: 8186.280855 | D49: 1813.719145 | E49: 10000 | G49: 39 | H49: 236700.5595 | I49: 9754.838339 | J49: 245.1616612 | K49: 10000
A50: 40 | B50: 312590.6043 | C50: 8232.567277 | D50: 1767.432723 | E50: 10000 | G50: 40 | H50: 226945.7211 | I50: 9764.941874 | J50: 235.0581262 | K50: 10000
A51: 41 | B51: 304358.037 | C51: 8279.115409 | D51: 1720.884591 | E51: 10000 | G51: 41 | H51: 217180.7793 | I51: 9775.055873 | J51: 224.9441266 | K51: 10000
A52: 42 | B52: 296078.9216 | C52: 8325.926731 | D52: 1674.073269 | E52: 10000 | G52: 42 | H52: 207405.7234 | I52: 9785.180349 | J52: 214.8196514 | K52: 10000
A53: 43 | B53: 287752.9949 | C53: 8373.002731 | D53: 1626.997269 | E53: 10000 | G53: 43 | H53: 197620.543 | I53: 9795.31531 | J53: 204.6846899 | K53: 10000
A54: 44 | B54: 279379.9921 | C54: 8420.344906 | D54: 1579.655094 | E54: 10000 | G54: 44 | H54: 187825.2277 | I54: 9805.460769 | J54: 194.5392311 | K54: 10000
A55: 45 | B55: 270959.6472 | C55: 8467.95476 | D55: 1532.04524 | E55: 10000 | G55: 45 | H55: 178019.767 | I55: 9815.616736 | J55: 184.3832642 | K55: 10000
A56: 46 | B56: 262491.6925 | C56: 8515.833808 | D56: 1484.166192 | E56: 10000 | G56: 46 | H56: 168204.1502 | I56: 9825.783222 | J56: 174.2167783 | K56: 10000
A57: 47 | B57: 253975.8587 | C57: 8563.98357 | D57: 1436.01643 | E57: 10000 | G57: 47 | H57: 158378.367 | I57: 9835.960238 | J57: 164.0397624 | K57: 10000
A58: 48 | B58: 245411.8751 | C58: 8612.405578 | D58: 1387.594422 | E58: 10000 | G58: 48 | H58: 148542.4068 | I58: 9846.147794 | J58: 153.8522058 | K58: 10000
A59: 49 | B59: 236799.4695 | C59: 8661.101372 | D59: 1338.898628 | E59: 10000 | G59: 49 | H59: 138696.259 | I59: 9856.345903 | J59: 143.6540975 | K59: 10000
A60: 50 | B60: 228138.3681 | C60: 8710.072498 | D60: 1289.927502 | E60: 10000 | G60: 50 | H60: 128839.9131 | I60: 9866.554574 | J60: 133.4454265 | K60: 10000
A61: 51 | B61: 219428.2956 | C61: 8759.320514 | D61: 1240.679486 | E61: 10000 | G61: 51 | H61: 118973.3585 | I61: 9876.773818 | J61: 123.2261819 | K61: 10000
A62: 52 | B62: 210668.9751 | C62: 8808.846986 | D62: 1191.153014 | E62: 10000 | G62: 52 | H62: 109096.5847 | I62: 9887.003647 | J62: 112.9963528 | K62: 10000
A63: 53 | B63: 201860.1281 | C63: 8858.653488 | D63: 1141.346512 | E63: 10000 | G63: 53 | H63: 99209.58103 | I63: 9897.244072 | J63: 102.7559282 | K63: 10000
A64: 54 | B64: 193001.4747 | C64: 8908.741602 | D64: 1091.258398 | E64: 10000 | G64: 54 | H64: 89312.33696 | I64: 9907.495103 | J64: 92.50489707 | K64: 10000
A65: 55 | B65: 184092.733 | C65: 8959.112923 | D65: 1040.887077 | E65: 10000 | G65: 55 | H65: 79404.84186 | I65: 9917.756751 | J65: 82.2432485 | K65: 10000
A66: 56 | B66: 175133.6201 | C66: 9009.76905 | D66: 990.2309504 | E66: 10000 | G66: 56 | H66: 69487.0851 | I66: 9928.029029 | J66: 71.97097147 | K66: 10000
A67: 57 | B67: 166123.8511 | C67: 9060.711594 | D67: 939.2884063 | E67: 10000 | G67: 57 | H67: 59559.05608 | I67: 9938.311945 | J67: 61.68805497 | K67: 10000
A68: 58 | B68: 157063.1395 | C68: 9111.942174 | D68: 888.0578256 | E68: 10000 | G68: 58 | H68: 49620.74413 | I68: 9948.605512 | J68: 51.39448798 | K68: 10000
A69: 59 | B69: 147951.1973 | C69: 9163.46242 | D69: 836.5375798 | E69: 10000 | G69: 59 | H69: 39672.13862 | I69: 9958.909741 | J69: 41.09025947 | K69: 10000
A70: 60 | B70: 138787.7349 | C70: 9215.273969 | D70: 784.726031 | E70: 10000 | G70: 60 | H70: 29713.22888 | I70: 9969.224642 | J70: 30.77535839 | K70: 10000
